fUSD/lending_fUSD_20260224
["ID","MTS","AMOUNT","RATE_DAILY","PERIOD"]
[406565716,1771947048510,-500.0,0.00013698,2]
[406565717,1771947048520,-514.97195478,0.00013698,2]
[406565718,1771947048530,-500.0,0.00013698,2]
[406565719,1771947048540,-500.0,0.00013698,2]
[406565720,1771947048549,-500.0,0.00013698,2]
[406565721,1771947048559,-500.0,0.00013698,2]
[406565722,1771947048569,-500.0,0.00013698,2]
[406565723,1771947048578,-500.0,0.00013698,2]
[406565724,1771947048587,-500.0,0.00013698,2]
[406565725,1771947048597,-500.0,0.00013698,2]
[406565726,1771947048606,-500.0,0.00013698,2]
[406565727,1771947048615,-500.0,0.00013698,2]
[406565728,1771947048624,-500.0,0.00013698,2]
[406565729,1771947048635,-500.0,0.00013698,2]
[406565730,1771947048644,-500.0,0.00013698,2]
[406565731,1771947048653,-500.0,0.00013698,2]
[406565732,1771947048662,-500.0,0.00013698,2]
[406565733,1771947048671,-500.0,0.00013698,2]
[406565734,1771947048683,-500.0,0.00013698,2]
[406565735,1771947048692,-566.19,0.00013698,2]
[406565736,1771947048702,-566.19,0.00013698,2]
[406565737,1771947048712,-566.19,0.00013698,2]
[406565738,1771947048722,-566.19,0.00013698,2]
[406565739,1771947048732,-566.19,0.00013698,2]
[406565740,1771947048744,-566.19,0.00013698,2]
[406565741,1771947048755,-566.19,0.00013698,2]
[406565742,1771947048765,-566.19,0.00013698,2]
[406565743,1771947048775,-566.19,0.00013698,2]
[406565744,1771947048784,-566.19,0.00013698,2]
[406565745,1771947048794,-566.19,0.00013698,2]
[406565746,1771947049028,-566.19,0.00013698,2]
[406565747,1771947049038,-566.19,0.00013698,2]
[406565748,1771947049048,-566.19,0.00013698,2]
[406565749,1771947049057,-566.19,0.00013698,2]
[406565750,1771947049067,-566.19,0.00013698,2]
[406565751,1771947049076,-566.19,0.00013698,2]
[406565752,1771947049086,-500.0,0.00013698,2]
[406565753,1771947049097,-500.0,0.00013698,2]
[406565754,1771947049105,-500.0,0.00013698,2]
[406565755,1771947049115,-500.0,0.00013698,2]
[406565756,1771947049126,-500.0,0.00013698,2]
[406565757,1771947049137,-500.0,0.00013698,2]
[406565758,1771947049146,-500.0,0.00013698,2]
[406565759,1771947049154,-500.0,0.00013698,2]
[406565760,1771947049164,-500.0,0.00013698,2]
[406565761,1771947049174,-500.0,0.00013698,2]
[406565762,1771947049184,-364.45426378,0.00013698,2]
[406565763,1771947049194,-917.0,0.00013698,2]
[406565764,1771947049203,-917.0,0.00013698,2]
[406565765,1771947049212,-917.0,0.00013698,2]
[406565766,1771947049222,-917.0,0.00013698,2]
[406565767,1771947049231,-917.0,0.00013698,2]
[406565768,1771947049240,-917.0,0.00013698,2]
[406565769,1771947049249,-917.0,0.00013698,2]
[406565770,1771947049257,-917.0,0.00013698,2]
[406565771,1771947049268,-917.0,0.00013698,2]
[406565772,1771947049277,-917.0,0.00013698,2]
[406565773,1771947049286,-917.0,0.00013698,2]
[406565774,1771947049295,-917.0,0.00013698,2]
[406565775,1771947049304,-917.0,0.00013698,2]
[406565776,1771947049313,-917.0,0.00013698,2]
[406565777,1771947049324,-917.0,0.00013698,2]
[406565778,1771947049333,-917.0,0.00013698,2]
[406565779,1771947049342,-917.0,0.00013698,2]
[406565780,1771947049351,-591.67,0.00013698,2]
[406565781,1771947049360,-591.67,0.00013698,2]
[406565782,1771947049369,-591.67,0.00013698,2]
[406565783,1771947049379,-591.67,0.00013698,2]
[406565784,1771947049388,-591.67,0.00013698,2]
[406565785,1771947049397,-591.67,0.00013698,2]
[406565786,1771947049406,-591.67,0.00013698,2]
[406565787,1771947049415,-591.67,0.00013698,2]
[406565788,1771947049425,-591.67,0.00013698,2]
[406565789,1771947049434,-591.67,0.00013698,2]
[406565790,1771947049444,-591.67,0.00013698,2]
[406565791,1771947049453,-591.67,0.00013698,2]
[406565792,1771947049462,-591.67,0.00013698,2]
[406565793,1771947049472,-591.67,0.00013698,2]
[406565794,1771947049482,-591.67,0.00013698,2]
[406565795,1771947049491,-591.67,0.00013698,2]
[406565796,1771947049500,-591.67,0.00013698,2]
[406565797,1771947049509,-657.39,0.00013698,2]
[406565798,1771947049518,-657.39,0.00013698,2]
[406565799,1771947049527,-657.39,0.00013698,2]
[406565800,1771947049536,-657.39,0.00013698,2]
[406565801,1771947049545,-657.39,0.00013698,2]
[406565802,1771947049554,-657.39,0.00013698,2]
[406565803,1771947049563,-657.39,0.00013698,2]
[406565804,1771947049573,-657.39,0.00013698,2]
[406565805,1771947049582,-657.39,0.00013698,2]
[406565806,1771947049591,-657.39,0.00013698,2]
[406565807,1771947049600,-657.39,0.00013698,2]
[406565808,1771947049609,-657.39,0.00013698,2]
[406565809,1771947049618,-657.39,0.00013698,2]
[406565810,1771947049627,-657.39,0.00013698,2]
[406565811,1771947049635,-657.39,0.00013698,2]
[406565812,1771947049644,-500.0,0.00013698,2]
[406565813,1771947049656,-657.39,0.00013698,2]
[406565814,1771947049667,-657.39,0.00013698,2]
[406565815,1771947049676,-500.0,0.00013698,2]
[406565816,1771947049686,-657.39,0.00013698,2]
[406565817,1771947049696,-500.0,0.00013698,2]
[406565818,1771947049705,-500.0,0.00013698,2]
[406565819,1771947049716,-500.0,0.00013698,2]
[406565820,1771947049726,-500.0,0.00013698,2]
[406565821,1771947049735,-500.0,0.00013698,2]
[406565822,1771947049745,-500.0,0.00013698,2]
[406565823,1771947049754,-500.0,0.00013698,2]
[406565824,1771947049764,-500.0,0.00013698,2]
[406565825,1771947049773,-500.0,0.00013698,2]
[406565826,1771947049783,-500.0,0.00013698,2]
[406565827,1771947049792,-500.0,0.00013698,2]
[406565828,1771947049802,-500.0,0.00013698,2]
[406565829,1771947049811,-500.0,0.00013698,2]
[406565830,1771947049820,-500.0,0.00013698,2]
[406565831,1771947049829,-500.0,0.00013698,2]
[406565832,1771947049839,-500.0,0.00013698,2]
[406565833,1771947049848,-500.0,0.00013698,2]
[406565834,1771947049857,-500.0,0.00013698,2]
[406565835,1771947049866,-500.0,0.00013698,2]
[406565836,1771947049877,-500.0,0.00013698,2]
[406565837,1771947049886,-500.0,0.00013698,2]
[406565838,1771947049896,-500.0,0.00013698,2]
[406565839,1771947049905,-500.0,0.00013698,2]
[406565840,1771947049915,-500.0,0.00013698,2]
[406565841,1771947049924,-500.0,0.00013698,2]
[406565842,1771947049934,-500.0,0.00013698,2]
[406565843,1771947049943,-500.0,0.00013698,2]
[406565844,1771947049952,-500.0,0.00013698,2]
[406565845,1771947049961,-500.0,0.00013698,2]
[406565846,1771947049970,-500.0,0.00013698,2]
[406565847,1771947049980,-500.0,0.00013698,2]
[406565848,1771947049989,-500.0,0.00013698,2]
[406565849,1771947049999,-500.0,0.00013698,2]
[406565850,1771947050008,-500.0,0.00013698,2]
[406565851,1771947050018,-500.0,0.00013698,2]
[406565852,1771947050027,-500.0,0.00013698,2]
[406565853,1771947050036,-507.40049193,0.00013698,2]
[406565854,1771947050047,-1423.69,0.00013698,2]
[406565855,1771947050056,-1423.69,0.00013698,2]
[406565856,1771947050066,-1423.69,0.00013698,2]
[406565857,1771947050076,-1423.69,0.00013698,2]
[406565858,1771947050086,-1423.69,0.00013698,2]
[406565859,1771947050097,-1423.69,0.00013698,2]
[406565860,1771947050107,-1423.69,0.00013698,2]
[406565861,1771947050116,-1423.69,0.00013698,2]
[406565862,1771947050128,-1423.69,0.00013698,2]
[406565863,1771947050138,-1423.69,0.00013698,2]
[406565864,1771947050147,-1423.69,0.00013698,2]
[406565865,1771947050157,-1423.69,0.00013698,2]
[406565866,1771947050166,-1423.69,0.00013698,2]
[406565867,1771947050175,-1423.69,0.00013698,2]
[406565868,1771947050188,-1423.69,0.00013698,2]
[406565869,1771947050197,-1423.69,0.00013698,2]
[406565870,1771947050206,-1423.69,0.00013698,2]
[406565871,1771947050215,-1423.69,0.00013698,2]
[406565872,1771947050224,-523.24,0.00013698,2]
[406565873,1771947050233,-523.24,0.00013698,2]
[406565874,1771947050243,-523.24,0.00013698,2]
[406565875,1771947050253,-523.24,0.00013698,2]
[406565876,1771947050262,-523.24,0.00013698,2]
[406565877,1771947050271,-523.24,0.00013698,2]
[406565878,1771947050280,-523.24,0.00013698,2]
[406565879,1771947050290,-523.24,0.00013698,2]
[406565880,1771947050299,-523.24,0.00013698,2]
[406565881,1771947050308,-523.24,0.00013698,2]
[406565882,1771947050318,-523.24,0.00013698,2]
[406565883,1771947050327,-523.24,0.00013698,2]
[406565884,1771947050336,-523.24,0.00013698,2]
[406565885,1771947050347,-523.24,0.00013698,2]
[406565886,1771947050356,-523.24,0.00013698,2]
[406565887,1771947050366,-523.24,0.00013698,2]
[406565888,1771947050375,-523.24,0.00013698,2]
[406565889,1771947050384,-500.0,0.00013698,2]
[406565890,1771947050394,-500.0,0.00013698,2]
[406565891,1771947050402,-500.0,0.00013698,2]
[406565892,1771947050412,-500.0,0.00013698,2]
[406565893,1771947050420,-500.0,0.00013698,2]
[406565894,1771947050429,-500.0,0.00013698,2]
[406565895,1771947050441,-500.0,0.00013698,2]
[406565896,1771947050450,-500.0,0.00013698,2]
[406565897,1771947050459,-500.0,0.00013698,2]
[406565898,1771947050468,-500.0,0.00013698,2]
[406565899,1771947050477,-500.0,0.00013698,2]
[406565900,1771947050491,-500.0,0.00013698,2]
[406565901,1771947050502,-500.0,0.00013698,2]
[406565902,1771947050512,-500.0,0.00013698,2]
[406565903,1771947050521,-222.44569411,0.00013698,2]
[406565904,1771947050530,-858.26,0.00013698,2]
[406565905,1771947050539,-858.26,0.00013698,2]
[406565906,1771947050548,-858.26,0.00013698,2]
[406565907,1771947050557,-858.26,0.00013698,2]
[406565908,1771947050567,-858.26,0.00013698,2]
[406565909,1771947050576,-858.26,0.00013698,2]
[406565910,1771947050585,-858.26,0.00013698,2]
[406565911,1771947050594,-858.26,0.00013698,2]
[406565912,1771947050603,-858.26,0.00013698,2]
[406565913,1771947050612,-858.26,0.00013698,2]
[406565914,1771947050620,-858.26,0.00013698,2]
[406565915,1771947050629,-858.26,0.00013698,2]
[406565916,1771947050638,-858.26,0.00013698,2]
[406565917,1771947050651,-858.26,0.00013698,2]
[406565918,1771947050665,-858.26,0.00013698,2]
[406565919,1771947050678,-858.26,0.00013698,2]
[406565920,1771947050692,-858.26,0.00013698,2]
[406565921,1771947050703,-500.0,0.00013698,2]
[406565922,1771947050720,-500.0,0.00013698,2]
[406565923,1771947050746,-500.0,0.00013698,2]
[406565924,1771947050758,-500.0,0.00013698,2]
[406565925,1771947050770,-500.0,0.00013698,2]
[406565926,1771947050783,-500.0,0.00013698,2]
[406565927,1771947050795,-500.0,0.00013698,2]
[406565928,1771947050807,-500.0,0.00013698,2]
[406565929,1771947050818,-500.0,0.00013698,2]
[406565930,1771947050829,-500.0,0.00013698,2]
[406565931,1771947050839,-500.0,0.00013698,2]
[406565932,1771947050853,-500.0,0.00013698,2]
[406565933,1771947050864,-500.0,0.00013698,2]
[406565934,1771947050877,-200.0,0.00013699,2]
[406565935,1771947050889,-177.32,0.00013699,2]
[406565936,1771947050902,-215.42973367,0.000137,2]
[406565937,1771947050915,-3500.0,0.0001386,2]
[406565938,1771947050928,-36959.70335098,0.00013899,2]
[406565939,1771947050940,-1200.0,0.000139,5]
[406565940,1771947050954,-1500.0,0.00014,2]
[406565941,1771947050966,-4800.44348195,0.0001412,2]
[406565942,1771947050979,-10357.55636516,0.0001439,2]
[406565943,1771947050991,-620.70979822,0.00014408,2]
[406565944,1771947051004,-1613.0,0.00014487,2]
[406565945,1771947051016,-6453.0,0.00014487,2]
[406565946,1771947051029,-2129.0,0.00014491,2]
[406565947,1771947051044,-500.0,0.000146,4]
[406565948,1771947051057,-151.0,0.00014634,2]
[406565949,1771947051069,-151.0,0.00014634,2]
[406565950,1771947051081,-151.0,0.00014634,2]
[406565951,1771947051094,-173.87087054,0.00014738,2]
[406565952,1771947051104,-36959.70335098,0.00014899,2]
[406565953,1771947051115,-176.18400318,0.000149,2]
[406565954,1771947051130,-160.0,0.00014905,2]
[406565955,1771947051145,-250.0,0.00015,2]
[406565956,1771947051157,-2057.23131483,0.00015,2]
[406565957,1771947051167,-18027.12324089,0.00015,7]
[406565958,1771947051179,-8008.97204016,0.00015,2]
[406565959,1771947051190,-500.0,0.000151,2]
[406565960,1771947051203,-509.0327441,0.000151,2]
[406565961,1771947051217,-164.16786887,0.000151,2]
[406565962,1771947051229,-504.28462668,0.000151,2]
[406565963,1771947051239,-500.0,0.000151,2]
[406565964,1771947051250,-500.0,0.000151,2]
[406565965,1771947051260,-503.3459029,0.000151,2]
[406565966,1771947051272,-500.0,0.000151,2]
[406565967,1771947051283,-500.0,0.000151,2]
[406565968,1771947051294,-500.0,0.000151,2]
[406565969,1771947051305,-162.13031906,0.000151,2]
[406565970,1771947051315,-500.0,0.000151,2]
[406565971,1771947051326,-503.99220136,0.000151,2]
[406565972,1771947051337,-504.16390705,0.000151,2]
[406565973,1771947051348,-304.38005979,0.000151,2]
[406565974,1771947051358,-511.18624479,0.000151,2]
[406565975,1771947051370,-500.0,0.000151,2]
[406565976,1771947051380,-500.0,0.000151,2]
[406565977,1771947051391,-500.0,0.000151,2]
[406565978,1771947051402,-487.94127816,0.000151,2]
[406565979,1771947051414,-186.88471708,0.000151,2]
[406565980,1771947051425,-168.61283304,0.000151,2]
[406565981,1771947051437,-170.38160206,0.000151,2]
[406565982,1771947051448,-209.6165406,0.000151,2]
[406565983,1771947051459,-500.0,0.000151,2]
[406565984,1771947051471,-500.0,0.000151,2]
[406565985,1771947051482,-500.0,0.000151,2]
[406565986,1771947051493,-503.60394883,0.000151,2]
[406565987,1771947051504,-501.44667058,0.000151,2]
[406565988,1771947051515,-501.93759306,0.000151,2]
[406565989,1771947051526,-500.0,0.000151,2]
[406565990,1771947051538,-500.0,0.000151,2]
[406565991,1771947051549,-500.0,0.000151,2]
[406565992,1771947051560,-140439.56128328,0.0001512,2]
[406565993,1771947051571,-1517.64,0.000153,2]
[406565994,1771947051582,-510.0565306,0.000154,2]
[406565995,1771947051593,-778.04,0.00015561,2]
[406565996,1771947051605,-500.0,0.00015647,2]
[406565997,1771947051618,-501.53221813,0.00015648,2]
[406565998,1771947051629,-1028.84101903,0.00015648,2]
[406565999,1771947051641,-1000.0,0.00015648,2]
[406566000,1771947051652,-483.17728486,0.00015648,2]
[406566001,1771947051663,-436.95947364,0.00015648,2]
[406566002,1771947051676,-502.25935248,0.00015648,2]
[406566003,1771947051689,-1092.86766843,0.00015648,2]
[406566004,1771947051700,-1000.0,0.00015648,2]
[406566005,1771947051711,-1000.0,0.00015648,2]
[406566006,1771947051722,-1000.0,0.00015648,2]
[406566007,1771947051733,-500.0,0.00015648,2]
[406566008,1771947051746,-1000.0,0.00015648,2]
[406566009,1771947051757,-1000.0,0.00015648,2]
[406566010,1771947051770,-243.69912151,0.00015648,2]
[406566011,1771947051782,-583.60061699,0.00015648,2]
[406566012,1771947051793,-1000.0,0.00015648,2]
[406566013,1771947051805,-2247.75609779,0.00015807,2]
[406566014,1771947051816,-778.04,0.00015835,2]
[406566015,1771947051827,-36959.70335098,0.00015899,2]
[406566016,1771947051838,-1286.0,0.00015935,2]
[406566017,1771947051849,-9035.0,0.00015935,2]
[406566018,1771947051860,-2401.0,0.00015939,2]
[406566019,1771947051871,-380.32235674,0.00016,2]
[406566020,1771947051882,-419.22118993,0.00016,2]
[406566021,1771947051893,-2815.04997657,0.00016092,2]
[406566022,1771947051905,-150.0,0.00016096,2]
[406566023,1771947051916,-380.32235674,0.000161,2]
[406566024,1771947051928,-9999.99,0.00016116,2]
[406566025,1771947051940,-1500.0,0.00016196,2]
[406566026,1771947051952,-1390.05507377,0.00016196,2]
[406566027,1771947051963,-1500.0,0.00016196,2]
[406566028,1771947051974,-602.53164684,0.00016196,2]
[406566029,1771947051986,-1500.0,0.00016196,2]
[406566030,1771947051996,-1500.0,0.00016196,2]
[406566031,1771947052008,-1500.0,0.00016196,2]
[406566032,1771947052019,-27862.39877492,0.000162,5]
[406566033,1771947052031,-380.32235674,0.000162,2]
[406566034,1771947052042,-469.1749961,0.00016236,2]
[406566035,1771947052053,-200.0,0.0001634,2]
[406566036,1771947052066,-469.1749961,0.00016397,2]
[406566037,1771947052077,-150.73989367,0.00016438,2]
[406566038,1771947052088,-361.85708907,0.000166,2]
[406566039,1771947052100,-603.28,0.00016743,2]
[406566040,1771947052112,-503.05357398,0.00016744,2]
[406566041,1771947052127,-2000.0,0.00016744,2]
[406566042,1771947052141,-932.65135931,0.00016744,2]
[406566043,1771947052153,-1255.82806005,0.00016744,2]
[406566044,1771947052165,-200.0,0.00016792,2]
[406566045,1771947052176,-36959.70335098,0.000169,2]
[406566046,1771947052189,-408.32664987,0.0001699,2]
[406566047,1771947052202,-500.0,0.00016999,2]
[406566048,1771947052214,-500.0,0.00016999,2]
[406566049,1771947052225,-193.0,0.00017,2]
[406566050,1771947052236,-300.0,0.00017,2]
[406566051,1771947052247,-404976.30869257,0.00017,2]
[406566052,1771947052259,-1052.0,0.00017077,2]
[406566053,1771947052270,-1052.0,0.00017082,2]
[406566054,1771947052281,-1052.0,0.00017221,2]
[406566055,1771947052293,-1052.0,0.00017262,2]
[406566056,1771947052305,-22494.06968,0.0001729,7]
[406566057,1771947052316,-1200.21212036,0.00017292,2]
[406566058,1771947052327,-1052.0,0.00017294,2]
[406566059,1771947052338,-1052.0,0.00017313,2]
[406566060,1771947052349,-1052.0,0.00017365,2]
[406566061,1771947052360,-1052.0,0.00017386,2]
[406566062,1771947052372,-2039.3747218,0.000175,3]
[406566063,1771947052383,-1052.0,0.00017512,2]
[406566064,1771947052395,-9708.0,0.00017529,2]
[406566065,1771947052407,-1052.0,0.00017565,2]
[406566066,1771947052419,-1052.0,0.0001762,2]
[406566067,1771947052430,-1052.0,0.00017752,2]
[406566068,1771947052444,-1052.0,0.00017767,2]
[406566069,1771947052456,-800.0,0.00017808,2]
[406566070,1771947052467,-1052.0,0.00017857,2]
[406566071,1771947052479,-1005.12410844,0.0001786,2]
[406566072,1771947052490,-1052.0,0.00017874,2]
[406566073,1771947052502,-1052.0,0.0001788,2]
[406566074,1771947052514,-1500.0,0.000179,6]
[406566075,1771947052525,-36959.70335098,0.000179,2]
[406566076,1771947052536,-768.11544236,0.00017912,2]
[406566077,1771947052548,-408.32664987,0.0001799,2]
[406566078,1771947052559,-500.0,0.00017999,2]
[406566079,1771947052572,-405.27589493,0.00017999,2]
[406566080,1771947052584,-200.0,0.00018,2]
[406566081,1771947052595,-2725679.61753649,0.00018,2]
[406566082,1771947052609,-614070.70455098,0.00018,2]
[406566083,1771947053601,-155.51205624,8.996e-05,2]
[406566084,1771947053611,-450.86528431,0.00013598,2]
[406566085,1771947053620,-500.0,0.00013698,2]
[406566086,1771947053629,-500.0,0.00013698,2]
[406566087,1771947053638,-500.0,0.00013698,2]
[406566088,1771947053648,-502.16359539,0.00013698,2]
[406566089,1771947053657,-33083.0851852,0.00018,2]
[406566090,1771947053668,-3196.0,0.00018,2]
[406566091,1771947053803,-5997.78027047,0.00018,2]
[406566092,1771947055294,-173.87087054,0.00017,7]
[406566093,1771947055303,-2573.93074157,0.00018,2]
[406566094,1771947055314,-521.24227449,0.00018,2]
[406566095,1771947103478,700.0,8.7e-05,3]
[406566096,1771947105576,1400.0,8.8e-05,3]
[406566097,1771947107674,2100.0,8.9e-05,3]
[406566098,1771947109761,2900.0,9e-05,3]
[406566099,1771947124787,1302.0,8.877e-05,2]
[406566100,1771947124818,2606.0,8.877e-05,2]
[406566101,1771947186472,6092.01,8.877e-05,2]
[406566102,1771947186496,8223.99,8.877e-05,2]
[406566103,1771947246033,-500.0,8.896e-05,2]
[406566104,1771947246070,-150.0,8.896e-05,2]
[406566105,1771947246103,-300.0,8.896e-05,2]
[406566106,1771947246136,-300.0,8.896e-05,2]
[406566107,1771947246170,-533.4214457,8.897e-05,2]
[406566108,1771947246182,-433.1571086,8.897e-05,2]
[406566109,1771947246191,-66.8428914,8.897e-05,2]
[406566110,1771947246206,-150.0,8.897e-05,2]
[406566111,1771947246217,-300.0,8.897e-05,2]
[406566112,1771947246402,-300.0,8.897e-05,2]
[406566113,1771947246508,-966.5785543,8.897e-05,2]
[406566114,1771947260462,-6992.75685099,8.897e-05,2]
[406566115,1771947260582,-10000.01,8.897e-05,2]
[406566116,1771947260704,-10000.01,8.897e-05,2]
[406566117,1771947260875,-4089.32550331,8.897e-05,2]
[406566118,1771947260967,-1821.35899338,8.897e-05,2]
[406566119,1771947261053,-10000.01,8.897e-05,2]
[406566120,1771947261097,-10000.01,8.897e-05,2]
[406566121,1771947261330,-10000.01,8.897e-05,2]
[406566122,1771947269226,-10000.01,8.897e-05,2]
[406566123,1771947269377,-10000.01,8.897e-05,2]
[406566124,1771947269495,-10000.01,8.897e-05,2]
[406566125,1771947276313,199.89,0.000131,7]
[406566126,1771947277129,199.89,0.00011,7]
[406566127,1771947297941,1119.35277557,8.7e-05,3]
[406566128,1771947297974,2088.70555119,8.7e-05,3]
[406566129,1771947298083,2864.18777162,8.7e-05,3]
[406566131,1771947336112,-3987.91380909,8.797e-05,2]
[406566132,1771947352187,-453.23638492,8.896e-05,2]
[406566133,1771947352548,-500.0,8.896e-05,2]
[406566134,1771947352585,-584.84498881,8.896e-05,2]
[406566135,1771947352618,-584.84498881,8.896e-05,2]
[406566136,1771947352656,-584.84498881,8.896e-05,2]
[406566137,1771947352688,-584.84498881,8.896e-05,2]
[406566138,1771947352724,-584.84498881,8.896e-05,2]
[406566139,1771947352755,-584.84498881,8.896e-05,2]
[406566140,1771947352789,-490.55237563,8.896e-05,2]
[406566141,1771947352922,-94.29261318,8.896e-05,2]
[406566142,1771947352957,-584.84498881,8.896e-05,2]
[406566143,1771947352989,-584.84498881,8.896e-05,2]
[406566144,1771947353024,-584.84498881,8.896e-05,2]
[406566145,1771947353060,-584.84498881,8.896e-05,2]
[406566146,1771947353096,-584.84498881,8.896e-05,2]
[406566147,1771947353130,-584.84498881,8.896e-05,2]
[406566148,1771947353166,-584.84498881,8.896e-05,2]
[406566149,1771947353201,-584.84498881,8.896e-05,2]
[406566150,1771947353349,-584.84498881,8.896e-05,2]
[406566151,1771947353385,-584.84498881,8.896e-05,2]
[406566152,1771947353422,-584.84498881,8.896e-05,2]
[406566153,1771947353460,-584.84498881,8.896e-05,2]
[406566154,1771947353496,-584.84498881,8.896e-05,2]
[406566155,1771947353533,-584.84498881,8.896e-05,2]
[406566156,1771947353568,-584.84498881,8.896e-05,2]
[406566157,1771947353603,-584.84498881,8.896e-05,2]
[406566158,1771947353638,-57.64519023,8.896e-05,2]
[406566159,1771947353765,-527.19979858,8.896e-05,2]
[406566160,1771947353800,-584.84498881,8.896e-05,2]
[406566161,1771947353838,-584.84498881,8.896e-05,2]
[406566162,1771947353871,-584.84498881,8.896e-05,2]
[406566163,1771947353904,-584.84498881,8.896e-05,2]
[406566164,1771947353942,-584.84498881,8.896e-05,2]
[406566165,1771947353980,-584.84498881,8.896e-05,2]
[406566166,1771947354015,-584.84498881,8.896e-05,2]
[406566167,1771947354053,-172.93557069,8.896e-05,2]
[406566168,1771947354156,-411.90941812,8.896e-05,2]
[406566169,1771947354194,-584.84498881,8.896e-05,2]
[406566170,1771947354234,-584.84498881,8.896e-05,2]
[406566171,1771947354273,-584.84498881,8.896e-05,2]
[406566172,1771947354308,-584.84498881,8.896e-05,2]
[406566173,1771947354343,-584.84498881,8.896e-05,2]
[406566174,1771947354378,-584.84498881,8.896e-05,2]
[406566175,1771947354413,-584.84498881,8.896e-05,2]
[406566176,1771947354452,-403.51633161,8.896e-05,2]
[406566177,1771947354600,-181.3286572,8.896e-05,2]
[406566178,1771947354633,-584.84498881,8.896e-05,2]
[406566179,1771947354667,-584.84498881,8.896e-05,2]
[406566180,1771947354703,-584.84498882,8.896e-05,2]
[406566181,1771947354740,-584.84498882,8.896e-05,2]
[406566182,1771947354774,-584.84498882,8.896e-05,2]
[406566183,1771947354808,-584.84498882,8.896e-05,2]
[406566184,1771947354842,-584.84498882,8.896e-05,2]
[406566185,1771947354877,-584.84498882,8.896e-05,2]
[406566186,1771947355008,-584.84498882,8.896e-05,2]
[406566187,1771947355048,-584.84498882,8.896e-05,2]
[406566188,1771947355086,-584.84498882,8.896e-05,2]
[406566189,1771947355124,-584.84498882,8.896e-05,2]
[406566190,1771947355159,-584.84498882,8.896e-05,2]
[406566191,1771947355195,-584.84498882,8.896e-05,2]
[406566192,1771947355235,-584.84498882,8.896e-05,2]
[406566193,1771947355271,-584.84498882,8.896e-05,2]
[406566194,1771947355307,-57.64519006,8.896e-05,2]
[406566195,1771947355576,-527.19979876,8.896e-05,2]
[406566196,1771947355610,-584.84498882,8.896e-05,2]
[406566197,1771947355643,-584.84498882,8.896e-05,2]
[406566198,1771947355675,-584.84498882,8.896e-05,2]
[406566199,1771947355708,-584.84498882,8.896e-05,2]
[406566200,1771947355742,-584.84498882,8.896e-05,2]
[406566201,1771947355776,-584.84498882,8.896e-05,2]
[406566202,1771947355813,-584.84498882,8.896e-05,2]
[406566203,1771947355848,-172.93557018,8.896e-05,2]
[406566204,1771947356966,-411.90941864,8.896e-05,2]
[406566205,1771947357001,-584.84498882,8.896e-05,2]
[406566206,1771947357037,-584.84498882,8.896e-05,2]
[406566207,1771947357072,-584.84498882,8.896e-05,2]
[406566208,1771947357105,-584.84498882,8.896e-05,2]
[406566209,1771947357139,-584.84498882,8.896e-05,2]
[406566210,1771947357175,-584.84498882,8.896e-05,2]
[406566211,1771947357211,-584.84498882,8.896e-05,2]
[406566212,1771947357247,-426.91012998,8.896e-05,2]
[406566213,1771947357349,-134.54105928,8.896e-05,2]
[406566214,1771947357384,-561.45118926,8.896e-05,2]
[406566215,1771947357420,-561.45118926,8.896e-05,2]
[406566216,1771947357456,-561.45118926,8.896e-05,2]